bitfinex-derivatives/quotes_BTCF0:USTF0_20240820
["timestamp","ask_amount","ask_price","bid_price","bid_amount"]
[1724165010523,0.066963,59717.0,59697.0,0.3608]
[1724165010739,0.066979,59702.0,59701.0,0.06698]
[1724165011039,0.3608,59702.0,59697.0,0.00492061]
[1724165011334,0.7216,59702.0,59694.0,0.066988]
[1724165011534,0.7216,59702.0,59691.0,0.00529673]
[1724165011535,0.3608,59695.0,59691.0,0.00529673]
[1724165011737,0.066989,59693.0,59692.0,0.00025118]
[1724165012035,0.066989,59693.0,59677.0,0.067007]
[1724165012036,0.00020527,59692.0,59676.0,0.3608]
[1724165012343,0.067005,59679.0,59676.0,0.3608]
[1724165013430,0.00025118,59683.0,59676.0,0.3608]
[1724165013831,0.00025118,59683.0,59681.0,0.067002]
[1724165014233,0.00025118,59683.0,59682.0,0.067001]
[1724165015232,0.00025118,59683.0,59682.0,0.969641]
[1724165015536,0.00025118,59683.0,59682.0,0.930441]
[1724165015733,0.3608,59702.0,59691.0,0.066991]
[1724165015939,0.42778,59702.0,59691.0,0.427791]
[1724165016136,0.42778,59702.0,59691.0,1.330391]
[1724165016437,0.42778,59702.0,59691.0,0.930391]
[1724165017136,0.3608,59702.0,59691.0,0.67925122]
[1724165017337,0.3608,59708.0,59696.0,0.3608]
[1724165017743,0.3608,59708.0,59707.0,0.066973]
[1724165018036,0.066969,59711.0,59707.0,0.066973]
[1724165018236,0.5594,59719.0,59705.0,0.00823571]
[1724165018237,0.066965,59715.0,59705.0,0.00823571]
[1724165018442,0.5594,59719.0,59709.0,0.3608]
[1724165018637,0.066966,59714.0,59709.0,0.06697]
[1724165018841,0.066967,59713.0,59709.0,0.06697]
[1724165019043,0.5594,59719.0,59709.0,0.06697]
[1724165019346,0.5594,59719.0,59705.0,0.0083153]
[1724165019347,0.3608,59714.0,59705.0,0.0083153]
[1724165019639,0.3608,59714.0,59704.0,0.066976]
[1724165020030,0.3608,59705.0,59703.0,0.00025118]
[1724165020444,0.066977,59704.0,59703.0,0.00025118]
[1724165021342,0.3608,59709.0,59703.0,0.00025118]
[1724165021548,0.066974,59707.0,59705.0,0.066975]
[1724165021732,0.066975,59706.0,59705.0,0.066975]
[1724165022749,0.3608,59709.0,59705.0,0.00820304]
[1724165022943,0.066967,59713.0,59703.0,0.36105118]
[1724165023649,0.066968,59712.0,59709.0,0.06697]
[1724165023949,0.427766,59714.0,59711.0,0.066968]
[1724165024334,0.066967,59713.0,59711.0,0.066968]
[1724165024547,0.066967,59713.0,59703.0,0.00025118]
[1724165024548,0.066977,59704.0,59703.0,0.00025118]
[1724165024842,0.427777,59704.0,59703.0,0.00025118]
[1724165026143,0.427777,59704.0,59692.0,0.3608]
[1724165026144,0.066988,59695.0,59694.0,0.066988]
[1724165026347,0.066994,59689.0,59678.0,0.04983132]
[1724165026642,0.3608,59696.0,59678.0,0.04983132]
[1724165026643,0.066988,59695.0,59687.0,0.3608]
[1724165026844,0.3608,59696.0,59687.0,0.3608]
[1724165026845,0.427786,59696.0,59687.0,0.3608]
[1724165027044,0.427786,59696.0,59695.0,0.066987]
[1724165027746,0.066986,59696.0,59695.0,0.066987]
[1724165027941,0.066987,59695.0,59690.0,0.00025118]
[1724165028142,0.3608,59691.0,59690.0,0.00025118]
[1724165028446,0.494782,59691.0,59690.0,0.00025118]
[1724165030446,0.856782,59691.0,59690.0,0.00025118]
[1724165030642,0.856782,59691.0,59664.0,0.06644089]
[1724165030643,0.066997,59686.0,59664.0,0.06644089]
[1724165030950,0.427816,59669.0,59661.0,0.05001191]
[1724165031155,0.067017,59668.0,59662.0,0.067024]
[1724165031349,0.067019,59666.0,59659.0,0.05001191]
[1724165031657,0.3608,59684.0,59672.0,0.067013]
[1724165031862,0.067007,59677.0,59672.0,0.11723978]
[1724165032046,0.0002514,59684.0,59676.0,0.04997538]
[1724165032253,0.0002514,59684.0,59680.0,0.3608]
[1724165032555,0.0002514,59684.0,59681.0,0.04997538]
[1724165032755,0.0002514,59684.0,59681.0,0.11697738]
[1724165032957,0.0002514,59684.0,59681.0,0.067002]
[1724165033258,0.067,59683.0,59680.0,0.41077538]
[1724165033955,0.067,59683.0,59680.0,0.3608]
[1724165034153,0.067,59683.0,59679.0,0.04997538]
[1724165034154,0.067,59683.0,59679.0,0.41077538]
[1724165034557,0.067,59683.0,59679.0,0.47778038]
[1724165034854,0.0002514,59684.0,59679.0,0.41077538]
[1724165035060,0.0002514,59684.0,59679.0,0.3608]
[1724165035461,0.067004,59680.0,59679.0,0.3608]
[1724165036458,0.067004,59680.0,59675.0,0.00834435]
[1724165036459,0.067008,59676.0,59675.0,0.00834435]
[1724165036656,0.067012,59673.0,59672.0,0.0002514]
[1724165037350,0.427812,59673.0,59672.0,0.0002514]
[1724165037856,0.72364,59680.0,59672.0,0.0002514]
[1724165037857,0.067009,59676.0,59672.0,0.0002514]
[1724165038161,0.0002514,59684.0,59683.0,0.067]
[1724165038457,0.0002514,59684.0,59683.0,0.43633791]
[1724165039254,0.0002514,59684.0,59683.0,0.48629]
[1724165040254,0.0672504,59684.0,59683.0,0.47775209]
[1724165040454,0.067001,59682.0,59681.0,0.04995209]
[1724165040654,0.0002514,59684.0,59677.0,0.04995209]
[1724165040862,0.134024,59673.0,59672.0,0.0002514]
[1724165041658,0.067012,59673.0,59672.0,0.0002514]
[1724165042158,0.3608,59678.0,59677.0,0.067007]
[1724165042362,0.067004,59680.0,59679.0,0.067004]
[1724165042655,0.067002,59682.0,59677.0,0.04995209]
[1724165042963,0.2346,59701.0,59683.0,0.067]
[1724165042964,1e-08,59684.0,59683.0,0.067]
[1724165043154,1e-08,59684.0,59683.0,0.11697984]
[1724165043460,1e-08,59684.0,59683.0,0.067]
[1724165043954,1e-08,59684.0,59683.0,0.13830245]
[1724165044868,0.35590001,59711.0,59683.0,1.87027143]
[1724165045052,0.066968,59712.0,59705.0,0.066975]
[1724165045357,0.066969,59711.0,59705.0,0.066975]
[1724165045659,0.06697,59710.0,59706.0,0.066974]
[1724165046256,0.06697,59710.0,59702.0,0.3610514]
[1724165046257,0.066978,59703.0,59702.0,1e-08]
[1724165046470,0.495956,59703.0,59702.0,1e-08]
[1724165046756,1.398436,59703.0,59702.0,1e-08]
[1724165047460,0.50248,59703.0,59702.0,1e-08]
[1724165047759,0.5694,59705.0,59702.0,1e-08]
[1724165047951,0.495956,59703.0,59702.0,1e-08]
[1724165048153,0.428978,59703.0,59702.0,1e-08]
[1724165048352,0.066978,59703.0,59702.0,1e-08]
[1724165050855,0.00084,59710.0,59709.0,0.066971]
[1724165051056,0.066971,59710.0,59705.0,0.427775]
[1724165051265,0.066971,59710.0,59702.0,1e-08]
[1724165051266,0.7228,59710.0,59702.0,1e-08]
[1724165051960,0.066975,59706.0,59702.0,1e-08]
[1724165052559,0.066975,59706.0,59704.0,0.066976]
[1724165052752,0.066978,59703.0,59702.0,1e-08]
[1724165053058,0.066974,59707.0,59706.0,0.066974]
[1724165053258,0.3608,59710.0,59705.0,0.3608]
[1724165053564,0.3608,59710.0,59709.0,0.066971]
[1724165053960,0.0672174,59714.0,59713.0,0.066967]
[1724165054255,0.0002514,59714.0,59713.0,0.066967]
[1724165055054,0.0002514,59714.0,59713.0,0.427767]
[1724165056050,0.0132514,59714.0,59713.0,0.428767]
[1724165056362,0.0132514,59714.0,59713.0,0.3618]
[1724165056550,0.0802164,59714.0,59713.0,0.3618]
[1724165056750,0.0672164,59714.0,59713.0,0.3608]
[1724165056955,0.0802164,59714.0,59713.0,0.3618]
[1724165057156,0.0802164,59714.0,59713.0,0.428767]
[1724165057559,0.9026514,59714.0,59713.0,0.001]
[1724165057759,0.9026514,59714.0,59702.0,1e-08]
[1724165057760,0.066978,59703.0,59702.0,1e-08]
[1724165059362,0.080978,59703.0,59702.0,0.00100001]
[1724165062253,0.080978,59703.0,59702.0,0.36180001]
[1724165062458,0.014,59703.0,59702.0,0.42877901]
[1724165064165,0.0002514,59714.0,59710.0,0.066968]
[1724165064166,0.06697,59711.0,59710.0,0.066968]
[1724165064766,0.0672174,59714.0,59713.0,0.066967]
[1724165065384,0.0002514,59714.0,59713.0,0.066967]
[1724165066160,0.066959,59720.0,59719.0,0.066959]
[1724165066364,0.3608,59724.0,59715.0,0.3608]
[1724165066570,0.066956,59723.0,59721.0,0.066957]
[1724165066758,0.066956,59723.0,59715.0,0.36907649]
[1724165066759,0.066956,59723.0,59722.0,0.066957]
[1724165067156,0.1782,59733.0,59725.0,0.066952]
[1724165067358,0.00025092,59728.0,59725.0,0.066952]
[1724165067562,0.066952,59726.0,59725.0,0.066952]
[1724165067767,0.00025092,59728.0,59725.0,0.00551504]
[1724165067968,0.066961,59718.0,59717.0,0.05019787]
[1724165068172,0.066961,59718.0,59717.0,0.00562102]
[1724165068760,0.002,59723.0,59717.0,0.00562102]
[1724165068960,0.002,59723.0,59722.0,0.066957]
[1724165069767,0.066958,59721.0,59717.0,0.00662102]
[1724165069971,0.066961,59718.0,59717.0,0.00662102]
[1724165071371,0.066957,59722.0,59721.0,0.066957]
[1724165071977,0.066951,59727.0,59721.0,0.3608]
[1724165072275,0.066951,59727.0,59726.0,0.066952]
[1724165073271,0.068951,59727.0,59726.0,0.066952]
[1724165073771,0.066957,59722.0,59721.0,0.3618]
[1724165073978,0.133914,59722.0,59721.0,0.3608]
[1724165074372,0.066957,59722.0,59721.0,0.3608]
[1724165075566,0.066959,59720.0,59719.0,0.06696]
[1724165076074,0.066961,59718.0,59717.0,0.00025118]
[1724165076280,0.066961,59718.0,59705.0,0.04994669]
[1724165076281,0.06697,59710.0,59705.0,0.04994669]
[1724165076576,0.06697,59710.0,59709.0,0.066971]
[1724165077674,0.427767,59713.0,59712.0,0.066968]
[1724165077877,0.00025118,59715.0,59714.0,0.066965]
[1724165078373,0.066968,59712.0,59711.0,0.066969]
[1724165078572,0.066968,59712.0,59707.0,0.066973]
[1724165078774,0.002,59710.0,59707.0,0.066973]
[1724165078968,0.066974,59706.0,59705.0,0.001]
[1724165079577,0.066976,59705.0,59704.0,0.00571103]
[1724165080765,0.066981,59700.0,59699.0,0.00018608]
[1724165080981,0.427781,59700.0,59699.0,0.00018608]
[1724165081278,0.427781,59700.0,59691.0,0.04994669]
[1724165081469,0.3608,59692.0,59691.0,0.066991]
[1724165081774,0.06699,59693.0,59692.0,0.06699]
[1724165082481,0.06716794,59693.0,59689.0,0.11693969]
[1724165082873,0.066991,59691.0,59689.0,0.11693969]
[1724165083273,0.066992,59690.0,59689.0,0.066993]
[1724165083676,0.00017794,59693.0,59689.0,0.001]
[1724165083977,0.066992,59690.0,59689.0,0.001]
[1724165084376,0.5722,59692.0,59689.0,0.067993]
[1724165084571,0.1851,59692.0,59689.0,0.067993]
[1724165084886,0.1851,59692.0,59690.0,0.066992]
[1724165085079,0.1851,59692.0,59691.0,0.066991]
[1724165085268,0.00017794,59693.0,59692.0,0.06699]
[1724165085472,0.00017794,59693.0,59692.0,0.42779]
[1724165086478,0.00025118,59697.0,59696.0,0.066986]
[1724165088277,0.00225118,59697.0,59696.0,0.067986]
[1724165089784,0.00225118,59697.0,59696.0,0.07353578]
[1724165090280,0.00225118,59697.0,59696.0,0.001]
[1724165090681,0.00225118,59697.0,59696.0,0.067986]
[1724165092485,0.00225118,59697.0,59696.0,0.07351066]
[1724165092987,0.00225118,59697.0,59696.0,0.14049666]
[1724165093286,0.00225118,59697.0,59696.0,0.12345735]
[1724165093485,0.00225118,59697.0,59696.0,0.07351066]
[1724165094688,0.00225118,59697.0,59696.0,0.14049666]
[1724165095184,0.00225118,59697.0,59696.0,0.19044335]
[1724165095375,0.00225118,59697.0,59696.0,0.14049666]
[1724165095580,0.00225118,59697.0,59696.0,0.19044335]
[1724165095981,0.53505361,59711.0,59696.0,0.12345735]
[1724165096184,0.53505361,59711.0,59708.0,0.066971]
[1724165096374,0.066973,59709.0,59708.0,0.066971]
[1724165096572,0.066976,59706.0,59705.0,0.066975]
[1724165096777,0.7227,59706.0,59696.0,0.00652466]
[1724165096985,0.13397,59697.0,59696.0,0.001]
[1724165097385,0.63653,59697.0,59696.0,0.001]
[1724165097679,0.133972,59696.0,59695.0,0.00025118]
[1724165098678,0.200958,59696.0,59695.0,0.00025118]
[1724165098976,0.067002,59682.0,59679.0,0.3608]
[1724165099389,0.067002,59682.0,59681.0,0.067003]
[1724165099793,0.3608,59692.0,59679.0,0.36617857]
[1724165099984,0.066999,59685.0,59683.0,0.066999]
[1724165100281,0.00025118,59687.0,59683.0,0.066999]
[1724165100483,0.00025118,59687.0,59686.0,0.133994]
[1724165100684,0.00533652,59704.0,59695.0,0.066987]
[1724165100874,0.3608,59705.0,59695.0,0.066987]
[1724165101079,0.066977,59704.0,59696.0,0.066985]
[1724165101278,0.066982,59700.0,59695.0,0.3608]
[1724165101475,0.066977,59704.0,59692.0,0.066989]
[1724165101680,0.066989,59693.0,59692.0,0.06724018]
[1724165101875,0.066989,59693.0,59692.0,0.00025118]
[1724165102278,0.133978,59693.0,59692.0,0.00025118]
[1724165102880,0.066989,59693.0,59692.0,0.00025118]
[1724165103377,0.133978,59693.0,59692.0,0.00025118]
[1724165103784,0.067,59683.0,59682.0,0.3608]
[1724165104993,0.3608,59707.0,59682.0,0.66917508]
[1724165105177,0.3608,59707.0,59695.0,0.3608]
[1724165105491,0.066974,59706.0,59699.0,0.066982]
[1724165105689,0.066974,59706.0,59695.0,0.3608]
[1724165105985,0.066977,59704.0,59693.0,0.066988]
[1724165106288,0.00025118,59706.0,59699.0,0.066982]
[1724165106489,0.00025118,59706.0,59695.0,0.06723718]
[1724165106684,0.066981,59700.0,59696.0,0.066985]
[1724165106994,0.066979,59703.0,59698.0,0.066983]
[1724165107192,0.00025118,59706.0,59698.0,0.066983]
[1724165107193,0.066979,59702.0,59698.0,0.066983]
[1724165107575,0.066979,59702.0,59699.0,0.066982]
[1724165107785,0.066979,59702.0,59700.0,0.066981]
[1724165108483,0.00025118,59706.0,59698.0,0.05003158]
[1724165108785,0.00025118,59706.0,59705.0,0.066976]
[1724165108987,0.066966,59714.0,59711.0,0.066969]
[1724165109184,0.066966,59714.0,59710.0,0.05009163]
[1724165109487,0.06697,59710.0,59709.0,0.3608]
[1724165109689,0.06697,59710.0,59706.0,0.05009744]
[1724165109878,0.06697,59710.0,59702.0,0.42743426]
[1724165109879,0.066976,59705.0,59704.0,0.05009744]
[1724165110694,0.066978,59703.0,59702.0,0.00572583]
[1724165111078,0.3608,59706.0,59702.0,0.00572583]
[1724165111278,0.3608,59718.0,59704.0,0.001]
[1724165111581,0.3608,59718.0,59704.0,0.05966755]
[1724165111781,0.1841,59723.0,59711.0,0.066969]
[1724165111782,0.06721592,59714.0,59711.0,0.066969]
[1724165112182,0.066967,59713.0,59711.0,0.066969]
[1724165112384,0.066967,59713.0,59712.0,0.066968]
[1724165113192,0.00025092,59714.0,59710.0,0.05009744]
[1724165113492,0.00025092,59714.0,59703.0,0.06663426]
[1724165113493,0.066968,59712.0,59703.0,0.11707444]
[1724165113693,0.066968,59712.0,59703.0,0.066977]
[1724165113897,0.066976,59705.0,59703.0,0.066977]
[1724165114093,0.066977,59704.0,59703.0,0.07278524]
[1724165114294,0.00025092,59714.0,59703.0,0.00580824]
[1724165114498,0.066969,59712.0,59711.0,0.066969]
[1724165114686,0.066969,59711.0,59710.0,0.001]
[1724165115395,0.066971,59709.0,59708.0,0.3608]
[1724165115586,0.066971,59709.0,59708.0,0.427772]
[1724165116191,0.066971,59710.0,59708.0,0.427772]
[1724165116483,0.133942,59709.0,59708.0,0.3608]
[1724165116684,0.066977,59704.0,59703.0,0.001]
[1724165117093,0.3608,59709.0,59703.0,0.001]
[1724165117597,0.066976,59705.0,59703.0,0.066977]
[1724165117902,0.066977,59704.0,59703.0,0.066977]
[1724165118497,0.066977,59704.0,59703.0,0.067977]
[1724165121503,0.494754,59704.0,59703.0,0.001]
[1724165122706,1.397234,59704.0,59703.0,0.001]
[1724165123399,0.50248,59703.0,59691.0,0.05009744]
[1724165123699,0.06699,59692.0,59691.0,0.0058303]
[1724165123903,0.066998,59686.0,59681.0,0.23269744]
[1724165124206,0.066995,59688.0,59685.0,0.066997]
[1724165124411,0.066996,59687.0,59686.0,0.066997]
[1724165124704,0.06699,59692.0,59691.0,0.001]
[1724165126304,0.06699,59692.0,59691.0,0.067991]
[1724165126891,0.3608,59712.0,59692.0,0.06699]
[1724165127097,0.066973,59708.0,59704.0,0.3608]
[1724165127496,0.3608,59712.0,59704.0,0.36927914]
[1724165127697,0.066959,59720.0,59711.0,0.3608]
[1724165127899,0.066959,59720.0,59718.0,0.066961]
[1724165128704,0.00025092,59721.0,59718.0,0.066961]
[1724165129408,0.00025092,59721.0,59718.0,0.07278697]
[1724165129905,0.00025092,59721.0,59720.0,0.066959]
[1724165130213,0.06720892,59721.0,59716.0,0.3608]
[1724165130395,0.06720892,59721.0,59719.0,0.06696]
[1724165130594,0.00025092,59721.0,59720.0,0.066959]
[1724165131110,0.00025092,59721.0,59710.0,0.00025118]
[1724165131111,0.06696,59719.0,59710.0,0.00025118]
[1724165131408,0.3619,59718.0,59710.0,0.00025118]
[1724165131706,0.066969,59711.0,59710.0,0.00025118]
[1724165132212,0.066969,59711.0,59710.0,0.00615227]
[1724165132409,0.066969,59711.0,59710.0,0.00025118]
[1724165133307,0.066969,59711.0,59710.0,0.00125118]
[1724165133512,1.85804512,59711.0,59687.0,0.11703638]
[1724165133810,0.066988,59694.0,59690.0,0.066991]
[1724165133999,0.066988,59694.0,59691.0,0.066991]
[1724165134209,0.066989,59693.0,59691.0,0.066991]
[1724165135210,0.06699,59692.0,59687.0,0.427796]
[1724165135610,0.066992,59691.0,59687.0,0.427796]
[1724165137405,0.00025118,59698.0,59690.0,0.05004138]
[1724165137603,0.42777,59710.0,59697.0,0.3608]
[1724165137804,0.3608,59710.0,59707.0,0.066973]
[1724165138105,0.066974,59707.0,59704.0,0.066976]
[1724165138308,0.3608,59710.0,59702.0,0.41084156]
[1724165138606,0.3608,59710.0,59702.0,0.3608]
[1724165138803,0.066978,59703.0,59702.0,0.3608]
[1724165139216,0.3608,59710.0,59702.0,0.3666521]
[1724165139506,0.066978,59703.0,59702.0,0.0058521]
[1724165139714,0.066978,59703.0,59700.0,0.00025118]
[1724165140012,0.06721892,59712.0,59709.0,0.06697]
[1724165140198,0.00025092,59712.0,59711.0,0.066969]
[1724165140601,0.00025092,59712.0,59706.0,0.176]
[1724165140801,0.00025092,59712.0,59708.0,0.066972]
[1724165141010,0.066973,59708.0,59702.0,0.41083782]
[1724165141211,0.066973,59708.0,59706.0,0.066974]
[1724165141608,0.3608,59708.0,59703.0,0.066978]
[1724165142110,0.3608,59708.0,59700.0,0.00125118]
[1724165142417,0.066973,59707.0,59700.0,0.06723218]
[1724165142613,0.42778,59702.0,59700.0,0.06723218]
[1724165142803,0.066973,59707.0,59700.0,0.06723218]
[1724165143110,0.3608,59708.0,59700.0,0.00025118]
[1724165143111,0.3608,59702.0,59700.0,0.00025118]
[1724165143414,0.42778,59702.0,59700.0,0.00125118]
[1724165143621,0.3608,59702.0,59700.0,0.00125118]
[1724165144109,0.429772,59708.0,59700.0,0.00125118]
[1724165144312,0.001,59702.0,59701.0,0.06698]
[1724165144906,0.00025092,59712.0,59711.0,0.066969]
[1724165145205,0.00025092,59712.0,59711.0,0.930169]
[1724165146009,0.00025092,59712.0,59711.0,0.427769]
[1724165146207,0.00025092,59712.0,59711.0,0.066969]
[1724165146518,0.00025092,59712.0,59711.0,0.07287708]
[1724165146810,0.06921892,59712.0,59711.0,0.001]
[1724165147603,0.97161892,59712.0,59701.0,0.05003946]
[1724165147806,0.066974,59707.0,59706.0,0.066975]
[1724165148204,0.3608,59710.0,59701.0,0.00597451]
[1724165148413,0.3608,59710.0,59700.0,0.00025118]
[1724165148414,0.3608,59710.0,59707.0,0.066973]
[1724165148613,0.3608,59710.0,59704.0,0.3608]
[1724165148614,0.06698,59701.0,59700.0,0.00025118]
[1724165148818,0.066978,59704.0,59703.0,0.066978]
[1724165149116,0.3608,59709.0,59701.0,0.001]
[1724165149416,0.066979,59702.0,59701.0,0.001]
[1724165149807,0.066979,59702.0,59700.0,0.00125118]
[1724165150509,0.3608,59703.0,59700.0,0.00125118]
[1724165150510,0.06698,59701.0,59700.0,0.00125118]
[1724165150713,0.06698,59701.0,59700.0,0.00025118]
[1724165151111,0.5695,59701.0,59700.0,0.00025118]
[1724165151613,0.06698,59701.0,59700.0,0.00025118]
[1724165151821,0.5695,59701.0,59700.0,0.00025118]
[1724165152319,0.06698,59701.0,59700.0,0.00125118]
[1724165152613,0.5695,59701.0,59700.0,0.00125118]
[1724165152916,0.06698,59701.0,59700.0,0.00125118]
[1724165153119,0.06998,59701.0,59700.0,0.00125118]
[1724165153712,0.5725,59701.0,59700.0,0.00125118]
[1724165154817,0.066989,59693.0,59692.0,0.00604132]
[1724165155011,1.1227,59693.0,59686.0,0.00576891]
[1724165155207,0.427796,59687.0,59684.0,0.066999]
[1724165155610,0.427796,59687.0,59679.0,0.00825003]
[1724165155611,0.427796,59687.0,59685.0,0.066998]
[1724165155811,0.066997,59686.0,59685.0,0.066998]
[1724165156209,0.51495118,59692.0,59680.0,0.00025118]
[1724165156404,0.00025118,59692.0,59691.0,0.066991]
[1724165156810,0.066992,59691.0,59688.0,0.066995]
[1724165157204,0.066993,59690.0,59689.0,0.066994]
[1724165157718,0.00025118,59692.0,59691.0,0.066991]
[1724165157914,0.00025118,59692.0,59691.0,0.427791]
[1724165158404,0.00025118,59692.0,59691.0,0.066991]
[1724165158815,0.00025118,59692.0,59685.0,0.00800646]
[1724165158816,0.066997,59686.0,59685.0,0.00800646]
[1724165159211,0.066997,59686.0,59685.0,0.00600646]
[1724165159413,0.066993,59690.0,59681.0,0.067002]
[1724165159612,0.1711,59691.0,59682.0,0.067001]
[1724165159818,0.1711,59691.0,59679.0,0.00825003]
[1724165159819,0.067,59683.0,59679.0,0.00825003]
[1724165160214,0.066994,59689.0,59679.0,0.00825003]
[1724165160407,0.066994,59689.0,59675.0,0.1713]
[1724165160408,0.067003,59681.0,59675.0,0.1713]
[1724165160613,0.134006,59681.0,59675.0,0.00854546]
[1724165160815,0.134006,59681.0,59677.0,0.00601415]
[1724165161116,0.134006,59681.0,59669.0,0.00016899]
[1724165161117,0.636686,59681.0,59669.0,0.00016899]
[1724165161322,0.50268,59681.0,59669.0,0.00016899]
[1724165161523,0.3608,59676.0,59669.0,0.00016899]
[1724165161822,0.067015,59670.0,59669.0,0.00016899]
[1724165162209,0.427815,59670.0,59669.0,0.00611866]
[1724165162431,0.067016,59669.0,59656.0,0.067031]
[1724165162723,0.067024,59662.0,59657.0,0.067029]
[1724165163210,0.427822,59665.0,59659.0,0.067026]
[1724165163529,0.067023,59663.0,59659.0,0.067026]
[1724165163721,0.00012467,59664.0,59654.0,0.00025139]
[1724165163722,0.3608,59660.0,59654.0,0.00025139]
[1724165164114,0.3608,59660.0,59654.0,0.00629249]
[1724165164312,0.067032,59656.0,59654.0,0.00025139]
[1724165164713,0.067032,59655.0,59654.0,0.00025139]
[1724165164909,0.067032,59656.0,59654.0,0.00025139]
[1724165165320,0.3608,59660.0,59654.0,0.00025139]
[1724165165321,0.067032,59655.0,59654.0,0.00025139]
[1724165165916,0.067027,59659.0,59654.0,0.90313139]
[1724165166114,0.00025139,59663.0,59662.0,0.067024]
[1724165166423,0.43368418,59680.0,59662.0,0.067024]
[1724165166424,0.427791,59692.0,59667.0,0.067018]
[1724165166625,0.427791,59692.0,59678.0,0.067006]
[1724165166824,0.066995,59688.0,59679.0,0.067005]
[1724165167012,0.3608,59692.0,59682.0,0.3608]
[1724165167218,0.3608,59700.0,59689.0,0.066993]
[1724165167419,0.066991,59691.0,59689.0,0.066993]
[1724165167722,0.066991,59691.0,59673.0,0.3608]
[1724165167723,0.066993,59690.0,59673.0,0.3608]
[1724165167915,0.246393,59690.0,59674.0,0.06701]
[1724165168115,0.246393,59690.0,59673.0,0.3608]
[1724165168116,0.067011,59674.0,59673.0,0.3608]
[1724165168326,0.06707265,59674.0,59673.0,0.3608]
[1724165169213,6.165e-05,59674.0,59673.0,0.3608]
[1724165169415,6.165e-05,59674.0,59673.0,0.427812]
[1724165169616,0.00306165,59674.0,59673.0,0.001]
[1724165169820,0.07507265,59674.0,59673.0,0.001]
[1724165170431,0.00806165,59674.0,59673.0,0.428812]
[1724165172127,0.00806165,59674.0,59673.0,0.001]
[1724165172333,0.07507265,59674.0,59673.0,0.001]
[1724165173220,0.14208365,59674.0,59673.0,0.001]
[1724165173433,0.067016,59669.0,59668.0,0.00025139]
[1724165174223,0.067016,59669.0,59654.0,0.5419]
[1724165174224,0.90276,59669.0,59657.0,0.067029]
[1724165174523,0.067026,59660.0,59654.0,0.5433]
[1724165174729,0.067026,59660.0,59654.0,0.5419]
[1724165174925,0.067026,59660.0,59658.0,0.067028]
[1724165175126,0.067018,59668.0,59654.0,0.54949933]
[1724165175324,0.067025,59662.0,59660.0,0.067026]
[1724165175527,0.06702,59666.0,59663.0,0.067022]
[1724165175736,0.067021,59665.0,59663.0,0.067022]
[1724165175923,0.067022,59664.0,59663.0,0.067022]
[1724165176732,0.067022,59664.0,59663.0,0.074022]
[1724165177231,0.067022,59664.0,59663.0,0.08032522]
[1724165178526,0.067022,59664.0,59663.0,0.007]
[1724165178732,0.067022,59664.0,59663.0,0.011]
[1724165179225,0.067022,59664.0,59663.0,0.078023]
[1724165180024,0.067022,59664.0,59663.0,0.011]
[1724165180239,0.134044,59664.0,59663.0,0.011]
[1724165181127,0.067022,59664.0,59663.0,0.011]
[1724165181329,0.067022,59664.0,59663.0,0.078023]
[1724165182935,0.067022,59664.0,59663.0,0.011]
[1724165183133,0.134044,59664.0,59663.0,0.011]
[1724165184632,0.134062,59656.0,59655.0,0.00025139]
[1724165184934,0.49492365,59656.0,59655.0,0.00025139]
[1724165185736,0.49492365,59656.0,59655.0,0.01325139]
[1724165186035,0.067043,59645.0,59644.0,0.067044]
[1724165186537,0.067044,59644.0,59643.0,0.00623731]
[1724165186736,0.3608,59651.0,59642.0,0.3608]
[1724165186935,0.067039,59649.0,59642.0,0.3608]
[1724165187131,0.3608,59651.0,59642.0,0.3608]
[1724165187338,0.3608,59651.0,59641.0,0.00025139]
[1724165187339,0.067046,59642.0,59641.0,0.00025139]
[1724165188043,0.067046,59642.0,59641.0,0.00667806]
[1724165188230,0.067046,59642.0,59641.0,0.00025139]
[1724165188434,0.067046,59642.0,59641.0,0.06729939]
[1724165189141,0.068046,59642.0,59641.0,0.07771592]
[1724165189346,0.068046,59642.0,59641.0,0.01066792]
[1724165189547,0.3629,59642.0,59625.0,0.44409282]
[1724165189732,0.067057,59633.0,59632.0,0.06672184]
[1724165189936,0.3608,59636.0,59633.0,0.067056]
[1724165190131,0.5215,59641.0,59633.0,0.067056]
[1724165190641,0.067055,59634.0,59633.0,0.067056]
[1724165191736,0.00020101,59640.0,59632.0,0.06672184]
[1724165191938,0.00020101,59640.0,59639.0,0.06705]
[1724165192647,0.00025139,59643.0,59642.0,0.067046]
[1724165192841,0.00025139,59643.0,59642.0,0.427846]
[1724165193052,0.00025139,59643.0,59642.0,0.930846]
[1724165193244,0.00025139,59643.0,59642.0,0.427846]
[1724165193449,0.068049,59640.0,59639.0,0.006]
[1724165193744,0.06810254,59640.0,59639.0,0.006]
[1724165194050,0.067054,59635.0,59634.0,0.067055]
[1724165194734,0.067057,59633.0,59632.0,0.07301683]
[1724165194939,0.067058,59632.0,59626.0,0.08329282]
[1724165195748,0.067058,59632.0,59631.0,0.00672769]
[1724165196049,0.00105354,59640.0,59631.0,0.86413139]
[1724165196246,5.354e-05,59640.0,59636.0,0.3608]
[1724165196749,5.354e-05,59640.0,59639.0,0.06705]
[1724165196949,0.067051,59639.0,59636.0,0.3608]
[1724165197153,0.067051,59639.0,59637.0,0.067051]
[1724165197853,5.354e-05,59640.0,59636.0,0.3608]
[1724165198054,5.354e-05,59640.0,59639.0,0.06705]
[1724165198546,0.00105354,59640.0,59639.0,0.06705]
[1724165199146,0.067051,59638.0,59637.0,0.235051]
[1724165199756,5.354e-05,59640.0,59639.0,0.06705]
[1724165200560,0.067051,59638.0,59637.0,0.0064563]
[1724165200854,0.068051,59638.0,59637.0,0.006]
[1724165201159,0.067068,59624.0,59623.0,0.067068]
[1724165201758,0.3608,59631.0,59619.0,0.36857193]